[Event "*** Titled Tuesday 3|2 Blitz (Late)"]
[Site "Chess.com"]
[Date "2017.01.03"]
[Round "4"]
[White "stalyansky"]
[Black "wonderfultime"]
[Result "1/2-1/2"]
[WhiteElo "1093"]
[BlackElo "2628"]
[TimeControl "180+2"]
[EndTime "17:48:00 PST"]
[Termination "Game drawn - insufficient material"]

1. e4 {[%clk 0:03:02]} 1... c5 {[%clk 0:02:59.9]} 2. Nf3 {[%clk 0:03:02.6]} 2...
d6 {[%clk 0:03:00.9]} 3. d4 {[%clk 0:03:03.3]} 3... cxd4 {[%clk 0:03:02.8]} 4.
Nxd4 {[%clk 0:03:04.9]} 4... Nf6 {[%clk 0:03:03.9]} 5. Nc3 {[%clk 0:03:06.5]}
5... g6 {[%clk 0:02:58.3]} 6. Be2 {[%clk 0:03:07.1]} 6... Bg7 {[%clk 0:02:59.3]}
7. O-O {[%clk 0:03:08.2]} 7... O-O {[%clk 0:02:58.7]} 8. Bg5 {[%clk 0:03:07.3]}
8... Nc6 {[%clk 0:02:59.8]} 9. Nb3 {[%clk 0:03:08.4]} 9... a6 {[%clk 0:02:59.1]}
10. a4 {[%clk 0:03:09.3]} 10... Be6 {[%clk 0:02:53.7]} 11. Kh1 {[%clk
0:03:08.7]} 11... Rc8 {[%clk 0:02:51.7]} 12. f4 {[%clk 0:03:08.3]} 12... Na5
{[%clk 0:02:49.1]} 13. e5 {[%clk 0:02:21.9]} 13... Nxb3 {[%clk 0:02:45.2]} 14.
cxb3 {[%clk 0:02:10.3]} 14... dxe5 {[%clk 0:02:44.5]} 15. Qxd8 {[%clk
0:02:00.1]} 15... Rfxd8 {[%clk 0:02:39.9]} 16. fxe5 {[%clk 0:02:00.6]} 16... Nd7
{[%clk 0:01:57]} 17. Bxe7 {[%clk 0:01:52.6]} 17... Re8 {[%clk 0:01:57.9]} 18.
Bf6 {[%clk 0:01:24.7]} 18... Bxb3 {[%clk 0:01:44.1]} 19. Bf3 {[%clk 0:01:14.1]}
19... Bxf6 {[%clk 0:01:22.5]} 20. exf6 {[%clk 0:01:08.3]} 20... Rc7 {[%clk
0:01:20.4]} 21. Rac1 {[%clk 0:00:50.3]} 21... Nxf6 {[%clk 0:01:16.2]} 22. Bxb7
{[%clk 0:00:40.9]} 22... Rxb7 {[%clk 0:01:18.1]} 23. Rxf6 {[%clk 0:00:41]} 23...
Be6 {[%clk 0:01:19.7]} 24. Rf2 {[%clk 0:00:37.8]} 24... Reb8 {[%clk 0:01:18.7]}
25. Rcc2 {[%clk 0:00:34.2]} 25... Rb4 {[%clk 0:01:19.8]} 26. h3 {[%clk
0:00:32.5]} 26... h5 {[%clk 0:01:20.4]} 27. Rcd2 {[%clk 0:00:32.8]} 27... Kg7
{[%clk 0:01:12.8]} 28. Kh2 {[%clk 0:00:33.4]} 28... a5 {[%clk 0:01:10]} 29. Rfe2
{[%clk 0:00:31.5]} 29... h4 {[%clk 0:01:09.9]} 30. Rf2 {[%clk 0:00:23.5]} 30...
g5 {[%clk 0:01:05]} 31. Rfe2 {[%clk 0:00:23.9]} 31... Bf5 {[%clk 0:00:53.5]} 32.
Re5 {[%clk 0:00:21.6]} 32... Kf6 {[%clk 0:00:35.5]} 33. Rxa5 {[%clk 0:00:22.6]}
33... Rxb2 {[%clk 0:00:36]} 34. Nd5+ {[%clk 0:00:22.4]} 34... Kg7 {[%clk
0:00:35.4]} 35. Rxb2 {[%clk 0:00:21.7]} 35... Rxb2 {[%clk 0:00:37.3]} 36. Ne3
{[%clk 0:00:21.3]} 36... Be4 {[%clk 0:00:34.9]} 37. Rxg5+ {[%clk 0:00:21.8]}
37... Kf6 {[%clk 0:00:36.4]} 38. Rg4 {[%clk 0:00:22.8]} 38... Ke5 {[%clk
0:00:37.5]} 39. Rxh4 {[%clk 0:00:20.7]} 39... f5 {[%clk 0:00:37.2]} 40. Kg3
{[%clk 0:00:08]} 40... Re2 {[%clk 0:00:34.9]} 41. Nc4+ {[%clk 0:00:06]} 41...
Kd4 {[%clk 0:00:35.8]} 42. Nd6 {[%clk 0:00:04.2]} 42... Rxg2+ {[%clk 0:00:36.8]}
43. Kf4 {[%clk 0:00:05.6]} 43... Rf2+ {[%clk 0:00:38.1]} 44. Kg5 {[%clk
0:00:06.7]} 44... Ke5 {[%clk 0:00:36.4]} 45. Nxe4 {[%clk 0:00:07.1]} 45... fxe4
{[%clk 0:00:37.9]} 46. Rh8 {[%clk 0:00:08]} 46... Rg2+ {[%clk 0:00:38.4]} 47.
Kh5 {[%clk 0:00:08.1]} 47... e3 {[%clk 0:00:39.8]} 48. Re8+ {[%clk 0:00:08.7]}
48... Kf4 {[%clk 0:00:41.3]} 49. h4 {[%clk 0:00:09.7]} 49... Ra2 {[%clk
0:00:39]} 50. Rf8+ {[%clk 0:00:07.3]} 50... Ke4 {[%clk 0:00:39.5]} 51. Re8+
{[%clk 0:00:08.5]} 51... Kf3 {[%clk 0:00:40.4]} 52. Kg6 {[%clk 0:00:07.7]} 52...
Rxa4 {[%clk 0:00:40]} 53. h5 {[%clk 0:00:06.7]} 53... Re4 {[%clk 0:00:41.1]} 54.
Ra8 {[%clk 0:00:07.7]} 54... e2 {[%clk 0:00:41.4]} 55. Ra1 {[%clk 0:00:08.6]}
55... Re6+ {[%clk 0:00:33.7]} 56. Kg7 {[%clk 0:00:08.6]} 56... Re7+ {[%clk
0:00:34.4]} 57. Kg6 {[%clk 0:00:09.5]} 57... Rd7 {[%clk 0:00:29]} 58. Re1 {[%clk
0:00:09.1]} 58... Rd6+ {[%clk 0:00:28.8]} 59. Kg7 {[%clk 0:00:09.8]} 59... Rd7+
{[%clk 0:00:30.3]} 60. Kg6 {[%clk 0:00:10.7]} 60... Kf2 {[%clk 0:00:29.4]} 61.
Rxe2+ {[%clk 0:00:11.1]} 61... Kxe2 {[%clk 0:00:31.3]} 62. h6 {[%clk 0:00:12.5]}
62... Kf3 {[%clk 0:00:26.7]} 63. h7 {[%clk 0:00:13.7]} 63... Rd8 {[%clk
0:00:27.1]} 64. Kg7 {[%clk 0:00:15]} 64... Kg4 {[%clk 0:00:27.5]} 65. h8=Q
{[%clk 0:00:14.9]} 65... Rxh8 {[%clk 0:00:28.5]} 66. Kxh8 {[%clk 0:00:16.2]}
1/2-1/2

[Event "*** Titled Tuesday 3|2 Blitz (Late)"]
[Site "Chess.com"]
[Date "2017.01.03"]
[Round "4"]
[White "platy3"]
[Black "Alexander_Moskalenko"]
[Result "0-1"]
[WhiteElo "2613"]
[BlackElo "2693"]
[TimeControl "180+2"]
[EndTime "17:48:46 PST"]
[Termination "Alexander_Moskalenko won by resignation"]

1. e4 {[%clk 0:03:02]} 1... c6 {[%clk 0:03:00.5]} 2. d4 {[%clk 0:03:00.3]} 2...
d5 {[%clk 0:03:01.2]} 3. Nc3 {[%clk 0:03:02.2]} 3... g6 {[%clk 0:03:01.9]} 4.
Nf3 {[%clk 0:03:00.9]} 4... Bg7 {[%clk 0:03:01.4]} 5. h3 {[%clk 0:03:02]} 5...
Nf6 {[%clk 0:03:01.1]} 6. e5 {[%clk 0:03:01.6]} 6... Ne4 {[%clk 0:03:02.7]} 7.
Nxe4 {[%clk 0:02:47.5]} 7... dxe4 {[%clk 0:03:04.6]} 8. Ng5 {[%clk 0:02:48.9]}
8... c5 {[%clk 0:03:04.6]} 9. dxc5 {[%clk 0:02:48.2]} 9... Qc7 {[%clk
0:02:53.2]} 10. e6 {[%clk 0:02:42.7]} 10... f5 {[%clk 0:02:51.1]} 11. Bb5+
{[%clk 0:02:33.6]} 11... Nc6 {[%clk 0:02:51.6]} 12. c3 {[%clk 0:02:28.8]} 12...
O-O {[%clk 0:02:52.2]} 13. h4 {[%clk 0:02:06.8]} 13... Ne5 {[%clk 0:02:43.3]}
14. Be3 {[%clk 0:02:00.3]} 14... a6 {[%clk 0:02:41.2]} 15. Be2 {[%clk
0:01:56.2]} 15... h6 {[%clk 0:02:41.7]} 16. Nf7 {[%clk 0:01:56.4]} 16... Bxe6
{[%clk 0:02:42.8]} 17. Nxe5 {[%clk 0:01:46.8]} 17... Qxe5 {[%clk 0:02:06.2]} 18.
Bd4 {[%clk 0:01:47.5]} 18... Qc7 {[%clk 0:02:03]} 19. Bxg7 {[%clk 0:01:47.3]}
19... Kxg7 {[%clk 0:02:04.9]} 20. Qd4+ {[%clk 0:01:48.4]} 20... Kh7 {[%clk
0:01:57.3]} 21. h5 {[%clk 0:01:48.9]} 21... g5 {[%clk 0:01:57]} 22. g4 {[%clk
0:01:32.7]} 22... Rfd8 {[%clk 0:01:54.8]} 23. Qe3 {[%clk 0:01:32]} 23... Qf4
{[%clk 0:01:52.1]} 24. gxf5 {[%clk 0:01:32.4]} 24... Bxf5 {[%clk 0:01:54]} 25.
Rd1 {[%clk 0:01:30.4]} 25... Rxd1+ {[%clk 0:01:51.3]} 26. Kxd1 {[%clk
0:01:31.5]} 26... Rd8+ {[%clk 0:01:52.1]} 27. Kc2 {[%clk 0:01:32.4]} 27... Qxe3
{[%clk 0:01:43.1]} 28. fxe3 {[%clk 0:01:33.3]} 28... Kg7 {[%clk 0:01:45]} 29. b4
{[%clk 0:01:32.6]} 29... Kf6 {[%clk 0:01:45.6]} 30. a4 {[%clk 0:01:33.4]} 30...
Ke5 {[%clk 0:01:43]} 31. c6 {[%clk 0:01:34.5]} 31... bxc6 {[%clk 0:01:37.2]} 32.
Bxa6 {[%clk 0:01:35.5]} 32... Ra8 {[%clk 0:01:35.9]} 33. b5 {[%clk 0:01:36.4]}
33... cxb5 {[%clk 0:01:32.4]} 34. axb5 {[%clk 0:01:33.7]} 34... g4 {[%clk
0:01:26.4]} 35. c4 {[%clk 0:01:32]} 35... Kd6 {[%clk 0:01:20.1]} 36. Rd1+ {[%clk
0:01:31.7]} 36... Kc7 {[%clk 0:01:21.1]} 37. c5 {[%clk 0:01:30.7]} 37... g3
{[%clk 0:01:19.2]} 38. Rg1 {[%clk 0:00:51.4]} 38... Rg8 {[%clk 0:01:19.1]} 39.
b6+ {[%clk 0:00:50.2]} 39... Kc6 {[%clk 0:01:19.7]} 40. b7 {[%clk 0:00:51.8]}
40... g2 {[%clk 0:01:15.7]} 41. Kc3 {[%clk 0:00:47]} 41... Bh3 {[%clk
0:01:16.7]} 42. Kd4 {[%clk 0:00:43.8]} 42... Rf8 {[%clk 0:01:17.1]} 43. Rb1
{[%clk 0:00:38.1]} 43... Kc7 {[%clk 0:01:16.5]} 44. Bc4 {[%clk 0:00:32.8]} 44...
Kb8 {[%clk 0:01:06.8]} 45. c6 {[%clk 0:00:34]} 45... e6 {[%clk 0:01:04.8]} 46.
Kc5 {[%clk 0:00:23.1]} 46... Kc7 {[%clk 0:01:06.3]} 47. Rd1 {[%clk 0:00:13.9]}
47... Rf5+ {[%clk 0:01:07.3]} 48. Kb4 {[%clk 0:00:15.3]} 48... Rf8 {[%clk
0:01:08.9]} 49. Bb5 {[%clk 0:00:11]} 49... Bg4 {[%clk 0:01:07]} 50. Rd7+ {[%clk
0:00:10.9]} 50... Kb8 {[%clk 0:00:53.7]} 51. Ba6 {[%clk 0:00:09.2]} 51... g1=Q
{[%clk 0:00:55]} 52. c7+ {[%clk 0:00:10]} 52... Ka7 {[%clk 0:00:56.6]} 53. c8=Q
{[%clk 0:00:09.5]} 53... Qe1+ {[%clk 0:00:43.2]} 54. Kc4 {[%clk 0:00:08]} 54...
Be2+ {[%clk 0:00:42.2]} 55. Kd4 {[%clk 0:00:07.2]} 55... Qb4+ {[%clk 0:00:24.1]}
56. Ke5 {[%clk 0:00:06.6]} 56... Qa5+ {[%clk 0:00:21.1]} 57. Kd6 {[%clk
0:00:04.9]} 57... Qb4+ {[%clk 0:00:20.1]} 58. Ke5 {[%clk 0:00:05.5]} 58... Qa5+
{[%clk 0:00:21.2]} 59. Kd6 {[%clk 0:00:06.9]} 59... Qb4+ {[%clk 0:00:22.2]} 60.
Ke5 {[%clk 0:00:04.6]} 60... Qa5+ {[%clk 0:00:05.6]} 61. Kxe6 {[%clk 0:00:02.8]}
61... Bg4+ {[%clk 0:00:04.9]} 62. Ke7 {[%clk 0:00:04.4]} 62... Qb4+ {[%clk
0:00:04.7]} 63. Rd6 {[%clk 0:00:04.6]} 63... Rxc8 {[%clk 0:00:03.2]} 64. bxc8=Q
{[%clk 0:00:05.7]} 64... Bxc8 {[%clk 0:00:03.8]} 65. Bxc8 {[%clk 0:00:07.6]}
65... Kb8 {[%clk 0:00:05.4]} 66. Bf5 {[%clk 0:00:06.3]} 66... Kc7 {[%clk
0:00:06.3]} 0-1

[Event "*** Titled Tuesday 3|2 Blitz (Late)"]
[Site "Chess.com"]
[Date "2017.01.03"]
[Round "4"]
[White "MateusViageiro"]
[Black "TrickyTrapChess"]
[Result "1/2-1/2"]
[WhiteElo "2308"]
[BlackElo "2153"]
[TimeControl "180+2"]
[EndTime "17:49:20 PST"]
[Termination "Game drawn by agreement"]

1. e4 {[%clk 0:03:01.9]} 1... e6 {[%clk 0:02:58.1]} 2. Qe2 {[%clk 0:03:02.1]}
2... c5 {[%clk 0:02:57.2]} 3. f4 {[%clk 0:03:02.4]} 3... Nc6 {[%clk 0:02:55.9]}
4. Nf3 {[%clk 0:03:03.3]} 4... g6 {[%clk 0:02:53.6]} 5. g3 {[%clk 0:03:04.5]}
5... Bg7 {[%clk 0:02:53.8]} 6. Bg2 {[%clk 0:03:05.7]} 6... Nge7 {[%clk
0:02:53.2]} 7. O-O {[%clk 0:03:06.7]} 7... O-O {[%clk 0:02:52.6]} 8. Kh1 {[%clk
0:03:06.7]} 8... d5 {[%clk 0:02:51.8]} 9. d3 {[%clk 0:03:07.7]} 9... Rb8 {[%clk
0:02:49.4]} 10. e5 {[%clk 0:03:06.6]} 10... b5 {[%clk 0:02:45.8]} 11. Be3 {[%clk
0:03:06.8]} 11... d4 {[%clk 0:02:42.9]} 12. Bg1 {[%clk 0:03:06.1]} 12... Qb6
{[%clk 0:02:41.4]} 13. Nbd2 {[%clk 0:03:06.8]} 13... Rd8 {[%clk 0:02:38.4]} 14.
Ne4 {[%clk 0:03:07.8]} 14... Nd5 {[%clk 0:02:36.8]} 15. Nd6 {[%clk 0:03:06.5]}
15... Bf8 {[%clk 0:02:31.4]} 16. Ng5 {[%clk 0:03:03.6]} 16... Bxd6 {[%clk
0:02:26.9]} 17. exd6 {[%clk 0:03:04.5]} 17... Nf6 {[%clk 0:02:26.4]} 18. c3
{[%clk 0:02:56]} 18... Rxd6 {[%clk 0:02:26.3]} 19. h3 {[%clk 0:02:46.7]} 19...
dxc3 {[%clk 0:02:22.5]} 20. bxc3 {[%clk 0:02:47.2]} 20... Bb7 {[%clk 0:02:23.5]}
21. Kh2 {[%clk 0:02:47.2]} 21... b4 {[%clk 0:02:17.3]} 22. Rab1 {[%clk
0:02:44.7]} 22... Ba6 {[%clk 0:02:11.8]} 23. Rfd1 {[%clk 0:02:44.5]} 23... Rbd8
{[%clk 0:02:00]} 24. c4 {[%clk 0:02:26.5]} 24... Bb7 {[%clk 0:01:56.9]} 25. a3
{[%clk 0:02:19]} 25... a5 {[%clk 0:01:55.8]} 26. axb4 {[%clk 0:02:19]} 26...
axb4 {[%clk 0:01:53.9]} 27. Qb2 {[%clk 0:02:18.9]} 27... Nd4 {[%clk 0:01:48.9]}
28. Bxd4 {[%clk 0:02:17]} 28... Rxd4 {[%clk 0:01:47]} 29. Bxb7 {[%clk
0:02:16.1]} 29... Qxb7 {[%clk 0:01:47.5]} 30. Qe2 {[%clk 0:02:17.1]} 30... Qd7
{[%clk 0:01:43.5]} 31. Qe5 {[%clk 0:02:13]} 31... Qe7 {[%clk 0:01:32.5]} 32. Rb3
{[%clk 0:01:56.7]} 32... Rxc4 {[%clk 0:01:24.4]} 33. Rd2 {[%clk 0:01:35.3]}
33... Rcd4 {[%clk 0:01:22.9]} 34. Nf3 {[%clk 0:01:29.2]} 34... R4d5 {[%clk
0:01:17.9]} 35. Qe2 {[%clk 0:01:29]} 35... Qd6 {[%clk 0:01:16.4]} 36. Ne5 {[%clk
0:01:27]} 36... Rd4 {[%clk 0:01:14.9]} 37. Rbb2 {[%clk 0:01:26.1]} 37... Nd5
{[%clk 0:01:12.6]} 38. Nc4 {[%clk 0:01:25.6]} 38... Qe7 {[%clk 0:01:07.4]} 39.
h4 {[%clk 0:01:22]} 39... Nxf4 {[%clk 0:01:05.2]} 40. gxf4 {[%clk 0:01:18.8]}
40... Qxh4+ {[%clk 0:01:06.6]} 41. Kg1 {[%clk 0:01:17.1]} 41... Rxf4 {[%clk
0:01:06.4]} 42. Ne3 {[%clk 0:01:17.6]} 42... Qg3+ {[%clk 0:01:01.6]} 43. Ng2
{[%clk 0:01:15.7]} 43... Rg4 {[%clk 0:00:59]} 44. Qf2 {[%clk 0:01:14.3]} 44...
Qxf2+ {[%clk 0:00:57]} 45. Kxf2 {[%clk 0:01:14.4]} 45... Kg7 {[%clk 0:00:57.6]}
46. Kf3 {[%clk 0:01:14.6]} 46... h5 {[%clk 0:00:55.7]} 47. Ne3 {[%clk
0:01:14.8]} 47... Rgd4 {[%clk 0:00:52.1]} 48. Ke2 {[%clk 0:01:15.8]} 48... f5
{[%clk 0:00:49.9]} 49. Rbc2 {[%clk 0:01:16.9]} 49... Rc8 {[%clk 0:00:48]} 50.
Nc4 {[%clk 0:01:17.4]} 50... g5 {[%clk 0:00:46]} 51. Ke3 {[%clk 0:01:18.1]}
51... Kf6 {[%clk 0:00:45.1]} 52. Nb6 {[%clk 0:01:19.2]} 52... f4+ {[%clk
0:00:43.8]} 53. Ke2 {[%clk 0:01:18.9]} 53... Rb8 {[%clk 0:00:44.8]} 54. Na4
{[%clk 0:01:17.1]} 54... g4 {[%clk 0:00:45.3]} 55. Nxc5 {[%clk 0:01:17.4]} 55...
h4 {[%clk 0:00:44.1]} 56. Ne4+ {[%clk 0:01:16.2]} 56... Rxe4+ {[%clk 0:00:41.6]}
57. dxe4 {[%clk 0:01:16.8]} 57... b3 {[%clk 0:00:42.2]} 58. Rb2 {[%clk
0:01:17.4]} 58... h3 {[%clk 0:00:43.1]} 59. Kf2 {[%clk 0:01:16.9]} 59... Kg5
{[%clk 0:00:40.7]} 60. Rd7 {[%clk 0:01:15.9]} 60... g3+ {[%clk 0:00:39.1]} 61.
Kf3 {[%clk 0:01:15.8]} 61... g2 {[%clk 0:00:39.8]} 62. Rg7+ {[%clk 0:01:13.7]}
62... Kf6 {[%clk 0:00:38.1]} 63. Rg4 {[%clk 0:01:11.2]} 63... e5 {[%clk
0:00:36.6]} 64. Kf2 {[%clk 0:01:08.9]} 64... Rh8 {[%clk 0:00:32.9]} 65. Rb1
{[%clk 0:01:05.5]} 65... h2 {[%clk 0:00:32.4]} 66. Kxg2 {[%clk 0:01:06.2]} 66...
h1=Q+ {[%clk 0:00:31.5]} 67. Rxh1 {[%clk 0:01:05.8]} 67... f3+ {[%clk
0:00:22.6]} 68. Kxf3 {[%clk 0:00:39.6]} 68... Rxh1 {[%clk 0:00:22]} 69. Rg2
{[%clk 0:00:40.7]} 69... Rh3+ {[%clk 0:00:17.9]} 70. Ke2 {[%clk 0:00:39.6]}
70... Rc3 {[%clk 0:00:18]} 71. Rg8 {[%clk 0:00:37.6]} 71... Rc2+ {[%clk
0:00:17.7]} 72. Kd3 {[%clk 0:00:38]} 72... Rh2 {[%clk 0:00:18.4]} 73. Rb8 {[%clk
0:00:38.7]} 73... b2 {[%clk 0:00:19.6]} 74. Kc4 {[%clk 0:00:38.7]} 74... Kg5
{[%clk 0:00:20.9]} 75. Kd5 {[%clk 0:00:39.9]} 75... Kf4 {[%clk 0:00:21.7]} 76.
Rf8+ {[%clk 0:00:40.5]} 76... Ke3 {[%clk 0:00:22.8]} 77. Rb8 {[%clk 0:00:41.3]}
77... Kf4 {[%clk 0:00:21.5]} 78. Rf8+ {[%clk 0:00:41.4]} 78... Ke3 {[%clk
0:00:22.5]} 79. Rb8 {[%clk 0:00:42.4]} 79... Rd2+ {[%clk 0:00:23.1]} 80. Kxe5
{[%clk 0:00:42.6]} 80... Kd3 {[%clk 0:00:24.5]} 81. Kf5 {[%clk 0:00:42.6]} 81...
Rf2+ {[%clk 0:00:24.9]} 82. Ke5 {[%clk 0:00:43.3]} 82... Kc2 {[%clk 0:00:25.2]}
83. Kd6 {[%clk 0:00:42.9]} 83... b1=Q {[%clk 0:00:25.9]} 84. Rxb1 {[%clk
0:00:43]} 84... Kxb1 {[%clk 0:00:27.8]} 85. e5 {[%clk 0:00:44.2]} 85... Kc2
{[%clk 0:00:28.8]} 86. e6 {[%clk 0:00:45.5]} 86... Rd2+ {[%clk 0:00:28.2]} 87.
Kc7 {[%clk 0:00:45.5]} 87... Kc3 {[%clk 0:00:26.9]} 88. e7 {[%clk 0:00:46.5]}
88... Re2 {[%clk 0:00:28.4]} 89. Kd7 {[%clk 0:00:47.5]} 89... Rd2+ {[%clk
0:00:28.4]} 90. Kc7 {[%clk 0:00:48.5]} 90... Re2 {[%clk 0:00:29.5]} 91. Kd7
{[%clk 0:00:49.2]} 1/2-1/2

[Event "*** Titled Tuesday 3|2 Blitz (Late)"]
[Site "Chess.com"]
[Date "2017.01.03"]
[Round "5"]
[White "TrickyTrapChess"]
[Black "fpawn"]
[Result "1-0"]
[WhiteElo "2163"]
[BlackElo "2215"]
[TimeControl "180+2"]
[EndTime "17:53:17 PST"]
[Termination "TrickyTrapChess won by resignation"]

1. d4 {[%clk 0:03:02]} 1... f5 {[%clk 0:02:28]} 2. Nc3 {[%clk 0:03:01.6]} 2...
d5 {[%clk 0:02:27.5]} 3. Bg5 {[%clk 0:03:00.5]} 3... g6 {[%clk 0:02:27.9]} 4. e3
{[%clk 0:02:57.9]} 4... Bg7 {[%clk 0:02:28.8]} 5. h4 {[%clk 0:02:55.4]} 5... c6
{[%clk 0:02:28.8]} 6. Nf3 {[%clk 0:02:54.4]} 6... Nd7 {[%clk 0:02:29.1]} 7. h5
{[%clk 0:02:53]} 7... h6 {[%clk 0:02:29.4]} 8. hxg6 {[%clk 0:02:52.3]} 8... hxg5
{[%clk 0:02:30]} 9. Rxh8 {[%clk 0:02:51.1]} 9... Bxh8 {[%clk 0:02:30.8]} 10.
Nxg5 {[%clk 0:02:48.8]} 10... Bg7 {[%clk 0:02:18.6]} 11. Ne6 {[%clk 0:02:46.3]}
11... Qb6 {[%clk 0:02:18.7]} 12. Nxg7+ {[%clk 0:02:40.5]} 12... Kf8 {[%clk
0:02:19.9]} 13. Ne6+ {[%clk 0:02:39.8]} 13... Ke8 {[%clk 0:02:21.4]} 14. Qd2
{[%clk 0:02:38.2]} 14... Ndf6 {[%clk 0:02:15.3]} 15. Na4 {[%clk 0:02:33.6]}
15... Ne4 {[%clk 0:02:02.1]} 16. Nxb6 {[%clk 0:02:27.1]} 16... Nxd2 {[%clk
0:02:02.8]} 17. Nxa8 {[%clk 0:02:21.5]} 17... Nxf1 {[%clk 0:02:03.1]} 18. Nec7+
{[%clk 0:02:20.1]} 18... Kd7 {[%clk 0:02:01.8]} 19. Kxf1 {[%clk 0:02:22]} 19...
b6 {[%clk 0:01:58.6]} 20. Ke2 {[%clk 0:02:22.7]} 20... Bb7 {[%clk 0:01:58.1]}
21. Rh1 {[%clk 0:02:23.6]} 1-0

[Event "*** Titled Tuesday 3|2 Blitz (Late)"]
[Site "Chess.com"]
[Date "2017.01.03"]
[Round "5"]
[White "Hamisandwich"]
[Black "pKiLz5Rn9b"]
[Result "0-1"]
[WhiteElo "2389"]
[BlackElo "2473"]
[TimeControl "180+2"]
[EndTime "17:54:12 PST"]
[Termination "pKiLz5Rn9b won by resignation"]

1. a3 {[%clk 0:03:02]} 1... e5 {[%clk 0:03:00.5]} 2. c4 {[%clk 0:03:02.7]} 2...
Nf6 {[%clk 0:03:01.5]} 3. d3 {[%clk 0:03:04.1]} 3... d5 {[%clk 0:03:01.9]} 4.
cxd5 {[%clk 0:03:06]} 4... Nxd5 {[%clk 0:03:02.5]} 5. Nf3 {[%clk 0:03:07.6]}
5... Bd6 {[%clk 0:03:02.8]} 6. e4 {[%clk 0:03:05.5]} 6... Ne7 {[%clk 0:03:03.6]}
7. d4 {[%clk 0:02:58.2]} 7... exd4 {[%clk 0:03:03.9]} 8. Qxd4 {[%clk 0:02:59.6]}
8... O-O {[%clk 0:03:04.1]} 9. Bg5 {[%clk 0:02:52.2]} 9... Nbc6 {[%clk 0:03:05]}
10. Qd2 {[%clk 0:02:46]} 10... f6 {[%clk 0:03:05.8]} 11. Be3 {[%clk 0:02:41.7]}
11... f5 {[%clk 0:03:05.1]} 12. Bc4+ {[%clk 0:02:27.2]} 12... Kh8 {[%clk
0:03:06]} 13. Nc3 {[%clk 0:02:06.3]} 13... f4 {[%clk 0:03:06.1]} 14. Bd4 {[%clk
0:02:03.8]} 14... Ng6 {[%clk 0:03:07.3]} 15. O-O-O {[%clk 0:01:59.1]} 15... Bg4
{[%clk 0:03:06.3]} 16. h3 {[%clk 0:01:23.3]} 16... Bxf3 {[%clk 0:03:07.1]} 17.
gxf3 {[%clk 0:01:25.2]} 17... Nge5 {[%clk 0:03:06.9]} 18. Be2 {[%clk 0:01:25.4]}
18... Nxd4 {[%clk 0:03:06.8]} 19. Qxd4 {[%clk 0:01:27.3]} 19... Qe7 {[%clk
0:03:06.4]} 20. Nd5 {[%clk 0:01:25.5]} 20... Qf7 {[%clk 0:03:07]} 21. Kb1 {[%clk
0:01:22.6]} 21... Rfd8 {[%clk 0:03:07.4]} 22. Qd2 {[%clk 0:01:11.9]} 22... Ng6
{[%clk 0:03:03.1]} 23. Bc4 {[%clk 0:01:05.4]} 23... Qf8 {[%clk 0:03:03.6]} 24.
Qc2 {[%clk 0:00:59.6]} 24... c6 {[%clk 0:03:03]} 25. Nc3 {[%clk 0:01:00.9]}
25... Ne5 {[%clk 0:03:02.5]} 26. Be2 {[%clk 0:01:01.1]} 26... Bc5 {[%clk
0:03:03.8]} 27. Nd5 {[%clk 0:00:48.2]} 27... cxd5 {[%clk 0:03:03.2]} 0-1

[Event "*** Titled Tuesday 3|2 Blitz (Late)"]
[Site "Chess.com"]
[Date "2017.01.03"]
[Round "5"]
[White "Abrito99"]
[Black "gmcorrales"]
[Result "1-0"]
[WhiteElo "2359"]
[BlackElo "2517"]
[TimeControl "180+2"]
[EndTime "17:55:06 PST"]
[Termination "Abrito99 won by resignation"]

1. e4 {[%clk 0:03:02]} 1... c5 {[%clk 0:02:51.9]} 2. Nf3 {[%clk 0:03:02.5]} 2...
d6 {[%clk 0:02:51.9]} 3. Bb5+ {[%clk 0:02:56.8]} 3... Bd7 {[%clk 0:02:29.7]} 4.
Bxd7+ {[%clk 0:02:56.9]} 4... Qxd7 {[%clk 0:02:31.6]} 5. O-O {[%clk 0:02:56.2]}
5... Nc6 {[%clk 0:02:31]} 6. c3 {[%clk 0:02:56.8]} 6... e6 {[%clk 0:02:32.1]} 7.
d4 {[%clk 0:02:54.6]} 7... cxd4 {[%clk 0:02:33]} 8. cxd4 {[%clk 0:02:55.9]} 8...
d5 {[%clk 0:02:34.6]} 9. exd5 {[%clk 0:02:42]} 9... exd5 {[%clk 0:02:35.4]} 10.
Re1+ {[%clk 0:02:41.4]} 10... Be7 {[%clk 0:02:36.2]} 11. Bg5 {[%clk 0:02:38.2]}
11... f6 {[%clk 0:02:37.2]} 12. Bf4 {[%clk 0:02:33.9]} 12... Kf7 {[%clk
0:02:32.6]} 13. Nc3 {[%clk 0:02:31.9]} 13... Rd8 {[%clk 0:02:32.9]} 14. Qd3
{[%clk 0:02:22.4]} 14... h5 {[%clk 0:02:33.2]} 15. Nh4 {[%clk 0:02:19]} 15...
Qg4 {[%clk 0:02:31.9]} 16. g3 {[%clk 0:02:08.6]} 16... Nb4 {[%clk 0:02:14.2]}
17. Qb1 {[%clk 0:02:03.2]} 17... Rd7 {[%clk 0:01:42.9]} 18. f3 {[%clk
0:01:54.8]} 18... Qh3 {[%clk 0:01:43.7]} 19. Qg6+ {[%clk 0:01:53.6]} 19... Kf8
{[%clk 0:01:44.6]} 20. Nf5 {[%clk 0:01:53.7]} 20... Nd3 {[%clk 0:00:55.7]} 21.
Qxg7+ {[%clk 0:01:50.7]} 21... Ke8 {[%clk 0:00:55.9]} 22. Qxh8 {[%clk
0:01:50.3]} 22... Kd8 {[%clk 0:00:53.8]} 23. Qxg8+ {[%clk 0:01:50.4]} 1-0

[Event "*** Titled Tuesday 3|2 Blitz (Late)"]
[Site "Chess.com"]
[Date "2017.01.03"]
[Round "5"]
[White "bugsbunny444"]
[Black "VerdeNotte"]
[Result "0-1"]
[WhiteElo "2329"]
[BlackElo "2483"]
[TimeControl "180+2"]
[EndTime "17:55:15 PST"]
[Termination "VerdeNotte won by resignation"]

1. Nf3 {[%clk 0:03:02]} 1... c5 {[%clk 0:02:59.3]} 2. c4 {[%clk 0:03:03.5]} 2...
g6 {[%clk 0:02:59]} 3. d4 {[%clk 0:03:04.4]} 3... cxd4 {[%clk 0:02:59.5]} 4.
Nxd4 {[%clk 0:03:06.3]} 4... Bg7 {[%clk 0:02:56.5]} 5. e4 {[%clk 0:03:06.8]}
5... Nc6 {[%clk 0:02:57.6]} 6. Be3 {[%clk 0:03:07.4]} 6... Nf6 {[%clk 0:02:57]}
7. Nc3 {[%clk 0:03:08.6]} 7... O-O {[%clk 0:02:58]} 8. Be2 {[%clk 0:03:09.9]}
8... d6 {[%clk 0:02:59.6]} 9. O-O {[%clk 0:03:10.8]} 9... Bd7 {[%clk 0:03:01.1]}
10. f3 {[%clk 0:03:12]} 10... Nxd4 {[%clk 0:02:58.9]} 11. Bxd4 {[%clk
0:03:13.9]} 11... a5 {[%clk 0:02:58.3]} 12. b3 {[%clk 0:03:14.9]} 12... Nh5
{[%clk 0:02:53.8]} 13. Rf2 {[%clk 0:03:00.7]} 13... Nf4 {[%clk 0:02:45.8]} 14.
Bf1 {[%clk 0:03:01.7]} 14... Ne6 {[%clk 0:02:31.7]} 15. Bxg7 {[%clk 0:03:02.2]}
15... Kxg7 {[%clk 0:02:33.6]} 16. Qd2 {[%clk 0:02:55.8]} 16... Bc6 {[%clk
0:02:13.4]} 17. Qb2 {[%clk 0:02:49]} 17... Kg8 {[%clk 0:02:13.1]} 18. Rc1 {[%clk
0:02:36.8]} 18... Qb6 {[%clk 0:02:11.7]} 19. g3 {[%clk 0:02:20.8]} 19... a4
{[%clk 0:02:04.7]} 20. b4 {[%clk 0:02:15.1]} 20... a3 {[%clk 0:02:04.7]} 21. Qb3
{[%clk 0:02:16.4]} 21... Nd4 {[%clk 0:02:04.3]} 22. Qd1 {[%clk 0:02:14.8]} 22...
e5 {[%clk 0:02:04]} 23. b5 {[%clk 0:02:12.7]} 23... Bd7 {[%clk 0:02:02]} 24. Nd5
{[%clk 0:02:10.1]} 24... Qd8 {[%clk 0:02:03]} 25. Rd2 {[%clk 0:01:59.4]} 25...
Be6 {[%clk 0:02:03.1]} 26. Nb4 {[%clk 0:01:47.4]} 26... Qa5 {[%clk 0:01:52.6]}
27. Nc2 {[%clk 0:01:40.6]} 27... Qxd2 {[%clk 0:01:51.9]} 0-1